bitfinex/quotes_ETHUSD_20250916
["timestamp","ask_amount","ask_price","bid_price","bid_amount"]
[1758038844499,0.002,4464.7,4464.6,22.69874231]
[1758038844714,0.002,4464.7,4464.6,23.62394231]
[1758038845518,0.002,4464.7,4464.6,20.4589]
[1758038845734,0.002,4464.7,4464.6,22.69874231]
[1758038845935,0.002,4464.7,4464.6,23.62394231]
[1758038846446,0.1112,4465.3,4464.6,22.69874231]
[1758038846680,0.4184502,4467.3,4467.2,2.23853868]
[1758038846838,0.12,4467.8,4467.2,5.551]
[1758038847032,0.12,4467.8,4467.3,14.5]
[1758038847335,0.9401,4467.5,4467.4,3.83]
[1758038847538,1.2335,4467.5,4467.4,3.83]
[1758038848102,1.2335,4467.5,4467.2,1.721]
[1758038848306,1.2335,4467.5,4467.3,3.831]
[1758038849506,0.7868,4467.5,4467.4,0.02238438]
[1758038850044,1.2335,4467.5,4467.4,0.02238438]
[1758038850751,1.2355,4467.5,4467.4,0.02238438]
[1758038852868,0.2954,4467.5,4467.4,0.02238438]
[1758038853023,0.002,4467.5,4467.4,0.02238438]
[1758038854451,0.2954,4467.5,4467.4,0.02238438]
[1758038855343,0.002,4467.5,4467.4,2.27462284]
[1758038855850,0.002,4467.5,4467.4,2.49372284]
[1758038856249,0.002,4467.5,4467.4,5.49372284]
[1758038856451,0.002,4467.5,4467.4,5.47133846]
[1758038856785,0.002,4467.5,4467.4,6.26333846]
[1758038857079,0.002,4467.5,4467.4,20.86593846]
[1758038857282,0.002,4467.5,4467.4,20.87453846]
[1758038862374,0.12,4467.8,4467.5,6.03038836]
[1758038862573,1e-08,4467.8,4467.7,22.24047783]
[1758038862795,1e-08,4467.8,4467.7,22.25427783]
[1758038863085,0.01,4467.9,4467.7,22.25427783]
[1758038863086,1e-08,4467.9,4467.8,6.03023805]
[1758038863382,1e-08,4467.9,4467.8,9.94533805]
[1758038863591,1e-08,4468.4,4468.0,0.792]
[1758038863771,1e-08,4468.4,4468.3,3.792]
[1758038863967,1e-08,4468.4,4468.3,9.88616747]
[1758038864147,1e-08,4468.4,4468.3,9.9628876]
[1758038864346,1e-08,4468.4,4468.3,24.4628876]
[1758038866347,1e-08,4468.4,4468.3,24.4542876]
[1758038867250,1e-08,4468.4,4468.3,24.4630876]
[1758038868895,1e-08,4468.4,4468.3,24.4542876]
[1758038869094,1e-08,4468.4,4468.3,24.3637876]
[1758038869275,1e-08,4468.4,4468.3,20.5437876]
[1758038869470,0.29340001,4468.4,4468.3,24.3439876]
[1758038869670,1e-08,4468.4,4468.3,24.3439876]
[1758038869865,1e-08,4468.4,4468.3,24.3579876]
[1758038870570,1e-08,4468.4,4468.3,20.5439876]
[1758038870896,1e-08,4468.4,4468.3,24.3579876]
[1758038871392,1e-08,4468.4,4468.3,24.3559876]
[1758038873098,1e-08,4468.4,4468.3,24.4531876]
[1758038873302,0.29340001,4468.4,4468.3,20.6411876]
[1758038873498,0.29340001,4468.4,4468.3,19.8491876]
[1758038873803,0.29340001,4468.4,4468.3,23.6611876]
[1758038874597,0.29340001,4468.4,4468.3,23.6601876]
[1758038874769,0.74920001,4468.4,4468.3,23.6601876]
[1758038875101,1.21410001,4468.4,4468.3,16.8491876]
[1758038875599,1.21410001,4468.4,4468.3,20.6601876]
[1758038876097,0.29340001,4468.4,4468.3,16.8491876]
[1758038876300,0.29340001,4468.4,4468.3,20.6601876]
[1758038877199,0.29340001,4468.4,4468.3,16.8491876]
[1758038877409,0.29340001,4468.4,4468.3,20.6601876]
[1758038877820,0.29340001,4468.4,4468.3,25.76139537]
[1758038878001,1.21410001,4468.4,4468.3,25.76139537]
[1758038878383,1.21410001,4468.4,4468.3,20.6601876]
[1758038879018,1.21410001,4468.4,4468.3,16.8491876]
[1758038879185,1.21410001,4468.4,4468.3,20.6601876]
[1758038879386,1.21410001,4468.4,4468.3,18.4222]
[1758038879587,1.21410001,4468.4,4468.3,20.6601876]
[1758038880886,0.29340001,4468.4,4468.3,20.6601876]
[1758038881082,1.21410001,4468.4,4468.3,18.4222]
[1758038881386,1.21410001,4468.4,4468.3,14.6112]
[1758038881589,1.84563079,4468.4,4468.3,18.311]
[1758038881996,7.15580459,4468.4,4468.1,1.72]
[1758038882198,2.23803768,4468.2,4468.1,1.245]
[1758038882380,2.44700371,4468.2,4468.1,5.056]
[1758038882585,1.44612364,4468.2,4468.1,5.056]
[1758038882827,2.11197678,4468.2,4468.1,5.056]
[1758038883148,4.35001446,4468.2,4468.1,5.056]
[1758038883485,2.11197678,4468.2,4468.1,5.056]
[1758038884227,3.68416132,4468.2,4468.1,5.056]
[1758038884738,3.68416132,4468.2,4468.1,1.245]
[1758038884889,3.68416132,4468.2,4468.1,3.811]
[1758038886009,1.44612364,4468.2,4467.8,0.001]
[1758038886186,0.20902364,4468.1,4467.9,3.811]
[1758038886403,2.59177386,4468.0,4467.9,3.811]
[1758038886588,3.82887386,4468.0,4467.9,3.811]
[1758038889224,2.34938796,4467.9,4467.8,0.001]
[1758038889391,2.5584116,4467.9,4467.8,3.813]
[1758038889586,2.17514584,4467.9,4467.8,3.813]
[1758038889815,3.7955116,4467.9,4467.8,3.813]
[1758038891126,1.55732364,4467.9,4467.8,3.813]
[1758038891494,1.3483,4467.9,4467.8,3.813]
[1758038891887,0.8834,4467.9,4467.8,3.813]
[1758038892090,3.58648796,4467.9,4467.8,3.813]
[1758038895154,1.3483,4467.9,4467.8,3.813]
[1758038895316,3.58648796,4467.9,4467.8,3.813]
[1758038896048,1.3483,4467.9,4467.8,3.813]
[1758038896256,3.58648796,4467.9,4467.8,3.813]
[1758038896616,1.3483,4467.9,4467.8,3.813]
[1758038897020,3.58648796,4467.9,4467.8,3.813]
[1758038898247,1.3483,4467.9,4467.8,3.813]
[1758038898451,3.58648796,4467.9,4467.8,3.813]
[1758038899561,1.3483,4467.9,4467.8,3.813]
[1758038899762,3.58648796,4467.9,4467.8,3.813]
[1758038901136,0.8834,4467.9,4467.8,3.813]
[1758038901335,0.4276,4467.9,4467.8,3.813]
[1758038902224,0.1112,4467.9,4467.8,3.813]
[1758038902430,2.23799056,4468.3,4467.8,4.1271]
[1758038902667,1e-08,4468.4,4467.8,4.1271]
[1758038902876,2.23793854,4468.4,4467.9,14.5]
[1758038903070,0.8396429,4468.4,4467.9,14.5]
[1758038903275,0.1112,4467.9,4467.8,3.813]
[1758038903733,0.1112,4467.9,4467.8,6.36533805]
[1758038904178,0.002,4468.1,4467.9,2.23816076]
[1758038904362,0.002,4468.1,4468.0,2.26051923]
[1758038904534,0.002,4468.1,4468.0,3.10251923]
[1758038904933,0.002,4468.1,4468.0,14.52238137]
[1758038905286,2.23813786,4468.0,4467.8,0.001]
[1758038905581,2.23813786,4468.0,4467.9,3.812]
[1758038905582,2.8192825,4468.0,4467.9,3.812]
[1758038905737,2.54683786,4468.0,4467.9,3.812]
[1758038906135,3.46023786,4468.0,4467.9,3.812]
[1758038907524,0.1112,4467.9,4467.8,0.001]
[1758038907727,1.0246,4467.9,4467.8,3.812]
[1758038907961,1.3333,4467.9,4467.8,3.812]
[1758038908167,3.57148796,4467.9,4467.8,3.812]
[1758038908529,4.76525276,4467.9,4467.8,3.812]
[1758038908856,4.97469707,4467.9,4467.8,3.812]
[1758038909478,4.51389707,4467.9,4467.8,3.812]
[1758038909762,3.32013227,4467.9,4467.8,3.812]
[1758038909927,3.78093227,4467.9,4467.8,3.812]
[1758038911658,4.26373717,4467.9,4467.8,3.812]
[1758038912359,4.4735091,4467.9,4467.8,3.812]
[1758038912576,4.47383802,4467.9,4467.8,3.812]
[1758038912880,5.75783783,4467.9,4467.8,3.812]
[1758038913255,5.7578521,4467.9,4467.8,3.812]
[1758038914085,5.54806525,4467.9,4467.8,3.812]
[1758038915552,5.08726525,4467.9,4467.8,3.812]
[1758038915754,4.63466525,4467.9,4467.8,3.812]
[1758038915958,2.86786054,4467.9,4467.8,3.812]
[1758038916260,0.20977258,4467.9,4467.8,4.122]
[1758038916467,0.002,4468.1,4467.8,4.122]
[1758038916663,0.21177258,4468.1,4467.8,4.5633]
[1758038916861,0.21177258,4468.1,4467.8,4.122]
[1758038917074,0.002,4468.1,4467.8,4.122]
[1758038917465,2.23818796,4467.9,4467.8,4.122]
[1758038917664,2.23814727,4468.0,4467.8,4.122]
[1758038918183,0.002,4468.1,4467.8,4.122]
[1758038918387,0.21176924,4468.1,4467.8,4.122]
[1758038918856,2.23815244,4468.0,4467.8,4.122]
[1758038919787,3.67005502,4467.9,4467.8,0.001]
[1758038919958,3.67005502,4467.9,4467.8,3.812]
[1758038920383,3.67005502,4467.9,4467.8,0.001]
[1758038920759,3.67005502,4467.9,4467.4,1.721]
[1758038920760,2.23838836,4467.5,4467.4,0.001]
[1758038920959,12.49067291,4467.5,4467.4,0.001]
[1758038921271,13.71277291,4467.5,4467.4,0.001]
[1758038921466,17.52277291,4467.5,4467.4,0.001]
[1758038921955,11.39670442,4467.5,4467.4,0.001]
[1758038923264,11.39648677,4467.5,4467.4,0.001]
[1758038923468,11.3960479,4467.5,4467.4,0.001]
[1758038923770,10.9771321,4467.5,4467.4,0.001]
[1758038924091,11.18657959,4467.5,4467.4,0.001]
[1758038924291,11.99903244,4467.5,4467.4,0.001]
[1758038924470,11.99904054,4467.5,4467.4,0.001]
[1758038924668,1.67118688,4467.5,4467.4,0.311]
[1758038924977,0.1112,4467.8,4467.7,2.23828815]
[1758038925182,0.002,4468.1,4467.9,2.23817937]
[1758038925393,0.002,4468.1,4468.0,6.07051923]
[1758038925702,0.002,4468.1,4468.0,6.04813786]
[1758038926077,0.002,4468.1,4467.8,2.23822154]
[1758038926078,0.002,4468.1,4467.9,2.23817692]
[1758038926289,0.002,4468.1,4467.8,6.15943136]
[1758038926487,0.002,4468.1,4467.8,3.81]
[1758038930318,2.54688796,4467.9,4467.8,3.81]
[1758038930483,2.2382952,4467.7,4467.4,5.531]
[1758038930673,0.002,4468.1,4467.4,5.531]
[1758038930874,2.23827794,4467.8,4467.4,5.531]
[1758038931269,2.23813786,4468.0,4467.4,5.531]
[1758038931478,2.23838146,4467.6,4467.4,5.531]
[1758038931707,0.4526,4468.0,4467.4,5.531]
[1758038931708,2.23830092,4467.7,4467.4,5.531]
[1758038931908,0.4526,4468.0,4467.4,5.531]
[1758038932109,2.23828963,4467.7,4467.4,5.531]
[1758038932415,2.23823315,4467.9,4467.4,5.531]
[1758038932825,0.4526,4468.0,4467.4,5.531]
[1758038933117,2.70090033,4468.1,4467.4,5.531]
[1758038933489,0.4628,4468.1,4467.4,5.531]
[1758038933830,2.23825222,4467.8,4467.4,5.531]
[1758038934211,2.23826408,4467.8,4467.4,5.531]
[1758038934405,0.4628,4468.1,4467.4,5.531]
[1758038934628,2.23834163,4467.6,4467.4,5.531]
[1758038934776,2.23829792,4467.7,4467.4,5.531]
[1758038935179,2.23824298,4467.8,4467.4,5.531]
[1758038935385,0.4695,4468.0,4467.4,5.531]
[1758038935585,2.23823004,4467.9,4467.4,5.531]
[1758038935901,2.23830054,4467.7,4467.4,5.531]
[1758038936433,0.9323,4468.1,4467.4,5.531]
[1758038936583,1.45463375,4468.1,4467.5,3.809]
[1758038936783,2.54103825,4467.6,4467.5,3.809]
[1758038936983,2.54103825,4467.6,4467.4,1.721]
[1758038936984,2.23838836,4467.5,4467.4,0.001]
[1758038937219,3.34887632,4467.5,4467.4,0.001]
[1758038937415,3.65157632,4467.5,4467.4,0.001]
[1758038937656,4.24056778,4467.5,4467.4,0.001]
[1758038940326,8.04046778,4467.5,4467.4,0.001]
[1758038941385,3.03666778,4467.5,4467.4,0.001]
[1758038941688,3.81136778,4467.5,4467.4,0.001]
[1758038941994,10.36861688,4467.5,4467.4,0.001]
[1758038942497,10.3685198,4467.5,4467.4,0.001]
[1758038943353,13.3685198,4467.5,4467.4,0.001]
[1758038943561,13.85039882,4467.5,4467.4,0.001]
[1758038943788,13.38999882,4467.5,4467.4,0.001]
[1758038943993,13.85039882,4467.5,4467.4,0.001]
[1758038944909,14.05955394,4467.5,4467.4,0.001]
[1758038945866,17.86855394,4467.5,4467.4,0.001]
[1758038946692,5.2386389,4467.0,4466.9,0.001]
[1758038946975,15.59567687,4467.0,4466.9,0.001]
[1758038947180,17.27975589,4467.0,4466.9,0.001]
[1758038947397,17.0706579,4467.0,4466.9,0.001]
[1758038947876,16.6431579,4467.0,4466.9,0.001]
[1758038948076,18.95883079,4467.0,4466.9,0.001]
[1758038948279,4.30942556,4467.4,4466.9,0.001]
[1758038948280,0.60302048,4467.9,4466.9,2.986]
[1758038948515,0.1112,4467.4,4466.9,2.986]
[1758038948724,0.1112,4467.6,4467.0,0.02238638]
[1758038948905,0.1112,4467.6,4467.5,2.23838836]
[1758038949087,1e-08,4468.4,4467.1,0.56381139]
[1758038949411,1e-08,4468.4,4467.8,2.23821471]
[1758038949611,1e-08,4468.4,4467.9,6.04718348]
[1758038949832,1e-08,4468.4,4468.0,2.26051923]
[1758038950412,1e-08,4468.4,4468.0,16.76051923]
[1758038950727,1e-08,4468.4,4468.0,16.73813786]
[1758038952819,1e-08,4468.4,4468.0,14.5]
[1758038953123,1e-08,4468.4,4468.0,16.73813786]
[1758038956943,1e-08,4468.4,4468.0,14.5]
[1758038957136,0.3163,4468.1,4467.7,1.721]
[1758038957336,0.3163,4468.1,4467.8,3.808]
[1758038957742,0.3163,4468.1,4467.8,18.308]
[1758038959429,0.002,4468.1,4467.8,18.308]
[1758038959720,0.002,4468.1,4467.8,3.808]
[1758038959904,0.1112,4468.0,4467.8,3.808]
[1758038960106,0.1112,4468.0,4467.8,3.83038238]
[1758038961227,0.002,4468.1,4468.0,2.23813786]
[1758038961412,0.002,4468.1,4468.0,3.38581509]
[1758038961612,0.002,4468.1,4468.0,3.75845736]
[1758038961926,0.002,4468.1,4468.0,16.73813786]
[1758038962126,0.002,4468.1,4468.0,20.54613786]
[1758038964437,0.002,4468.1,4468.0,14.5]
[1758038964638,0.002,4468.1,4468.0,18.307]
[1758038965046,0.002,4468.1,4468.0,14.5]
[1758038965270,0.002,4468.1,4468.0,18.307]
[1758038966164,0.3151,4468.1,4468.0,18.307]
[1758038966907,0.3151,4468.1,4468.0,14.5]
[1758038967049,0.3151,4468.1,4468.0,18.307]
[1758038968678,0.002,4468.1,4468.0,18.307]
[1758038969095,0.002,4468.1,4468.0,3.807]
[1758038969583,0.002,4468.1,4468.0,18.307]
[1758038969878,0.002,4468.1,4468.0,20.54513786]
[1758038973522,0.002,4468.1,4468.0,20.65633786]
[1758038974910,0.002,4468.1,4468.0,6.15633786]
[1758038975488,0.002,4468.1,4468.0,20.65633786]
[1758038981262,0.002,4469.3,4469.2,2.23753691]
[1758038981468,0.002,4469.3,4469.2,10.78591227]
[1758038981673,0.002,4469.3,4469.2,11.88841705]
[1758038981855,0.002,4469.3,4469.2,26.38841705]
[1758038982057,0.002,4469.3,4469.2,26.47803192]
[1758038982259,0.002,4469.3,4469.2,26.14515178]
[1758038984778,1e-08,4469.4,4469.3,6.02948685]
[1758038985155,1e-08,4469.4,4469.3,6.47873075]
[1758038985358,1e-08,4469.4,4469.3,21.31161089]
[1758038985736,1e-08,4469.4,4469.3,20.51961089]
[1758038986650,1e-08,4469.9,4469.4,0.792]
[1758038986856,1e-08,4469.9,4469.8,6.02923656]
[1758038987202,1e-08,4469.9,4469.8,9.83423656]
[1758038987377,1e-08,4469.9,4469.8,24.33423656]
[1758038988583,1e-08,4469.9,4469.8,24.6671167]
[1758038989847,1e-08,4469.9,4469.8,24.97251093]
[1758038991279,1e-08,4469.9,4469.8,25.08371093]
[1758038991643,0.00200001,4469.9,4469.8,25.08371093]
[1758038992181,1e-08,4470.4,4470.3,3.02898633]
[1758038992392,1e-08,4470.4,4470.3,11.90723633]
[1758038992678,0.43228389,4471.5,4471.4,2.23643601]
[1758038992869,0.43228389,4471.5,4471.4,22.39300037]
[1758038993066,1.21818389,4471.5,4471.4,22.37063601]
[1758038993452,1.21818389,4471.5,4471.4,23.04252926]
[1758038994824,1.21818389,4471.5,4471.4,17.00209325]
[1758038994988,1.21818389,4471.5,4471.4,20.1332]
[1758038995410,1.21818389,4471.5,4471.4,22.36963601]
[1758038996322,1.21818389,4471.5,4471.4,20.1332]
[1758038996730,0.43228389,4471.5,4471.4,20.1332]
[1758038996889,1.19838389,4471.5,4471.4,20.1332]
[1758038999596,3.43476989,4471.5,4471.4,16.219]
[1758038999792,4.14487456,4471.5,4471.4,20.022]
[1758038999993,4.14487456,4471.5,4471.4,5.522]
[1758039000223,1.90848856,4471.5,4471.4,5.522]
[1758039000403,1.90818856,4471.5,4471.4,5.522]
[1758039000592,1.19808389,4471.5,4471.4,5.522]
[1758039001327,3.43446989,4471.5,4471.4,5.522]
[1758039001539,3.43446989,4471.5,4471.4,1.719]
[1758039001743,3.43446989,4471.5,4471.4,5.522]
[1758039001941,3.93203688,4471.5,4471.4,5.522]
[1758039002322,1.69565088,4471.5,4471.4,5.522]
[1758039002620,3.16623688,4471.5,4471.4,5.522]
[1758039002817,1.72346699,4471.5,4471.4,5.522]
[1758039003220,3.95985299,4471.5,4471.4,5.521]
[1758039004452,5.38985299,4471.5,4471.4,5.521]
[1758039007053,5.59822925,4471.5,4471.4,5.521]
[1758039007253,9.07868918,4471.5,4471.4,5.521]
[1758039009417,9.08068918,4471.5,4471.4,5.521]
[1758039009850,9.08110996,4471.5,4471.4,5.521]
[1758039010539,9.290051,4471.5,4471.4,5.521]
[1758039010929,9.08110996,4471.5,4471.4,5.521]
[1758039011262,2.86669704,4471.5,4471.4,5.521]
[1758039011553,2.86693776,4471.5,4471.4,5.521]
[1758039012056,5.10332376,4471.5,4471.4,5.521]
[1758039012266,2.86693776,4471.5,4471.4,5.521]
[1758039012460,1.95723776,4471.5,4471.4,5.521]
[1758039012936,1.432,4471.5,4471.4,5.521]
[1758039014835,1.432,4471.5,4471.4,20.021]
[1758039015046,1.432,4471.5,4471.4,22.25743601]
[1758039015241,2.2083,4471.5,4471.4,20.021]
[1758039015454,2.6579,4471.5,4471.4,5.521]
[1758039016968,1.432,4471.5,4471.4,5.521]
[1758039017780,1.7482,4471.5,4471.4,5.521]
[1758039018145,2.6579,4471.5,4471.4,5.521]
[1758039018547,2.2083,4471.5,4471.4,5.521]
[1758039018969,2.6579,4471.5,4471.4,5.521]
[1758039020585,1.7482,4471.5,4471.4,3.95543601]
[1758039020882,1.432,4471.5,4471.4,7.75643601]
[1758039022753,1.7482,4471.5,4471.4,7.75643601]
[1758039022951,1.432,4471.5,4471.4,7.75643601]
[1758039023183,1.432,4471.5,4471.4,5.52]
[1758039023484,1.7482,4471.5,4471.4,5.52]
[1758039023787,2.6579,4471.5,4471.4,1.719]
[1758039023945,2.6579,4471.5,4471.4,5.52]
[1758039025188,3.14732422,4471.5,4471.4,5.52]
[1758039025427,5.49491022,4471.5,4471.4,5.52]
[1758039025620,5.49491022,4471.5,4471.4,1.719]
[1758039025780,5.91346607,4471.5,4471.4,1.719]
[1758039025981,5.91346607,4471.5,4471.4,4.081]
[1758039028235,3.67708007,4471.5,4471.4,4.081]
[1758039028429,5.91346607,4471.5,4471.4,4.081]
[1758039028634,4.30505795,4471.5,4471.4,4.081]
[1758039028787,5.43327747,4471.5,4471.4,4.081]
[1758039030387,5.32207747,4471.5,4471.4,4.081]
[1758039031844,5.3221963,4471.5,4471.4,4.081]
[1758039032223,0.00200001,4472.4,4471.5,3.792]
[1758039032413,0.00200001,4472.4,4471.4,5.84580407]
[1758039032414,0.002,4472.4,4471.8,3.0]
[1758039032741,0.002,4472.4,4472.1,14.5]
[1758039033046,0.002,4472.4,4472.2,6.05838444]
[1758039033250,0.002,4472.4,4472.3,1.74135985]
[1758039035548,0.002,4472.4,4472.3,3.9773458]
[1758039035746,0.002,4472.4,4472.3,3.95498595]
[1758039036612,0.002,4472.4,4472.3,18.45498595]
[1758039040559,0.002,4472.4,4472.3,18.56618595]
[1758039049584,0.002,4472.4,4472.3,18.67655646]
[1758039050254,0.002,4472.4,4472.3,18.56618595]
[1758039053889,0.002,4472.4,4472.3,21.56618595]
[1758039054061,0.002,4472.4,4472.3,22.24698595]
[1758039060510,0.002,4472.4,4472.2,0.55648182]
[1758039060511,1.2457,4472.4,4471.3,0.001]
[1758039060671,1.2457,4472.4,4470.5,0.001]
[1758039060672,2.23612181,4472.1,4470.8,1.718]
[1758039060871,0.2983,4470.9,4470.8,3.95473615]
[1758039061097,1.2437,4470.9,4470.8,5.515]
[1758039061841,1.2437,4470.9,4470.8,7.75173615]
[1758039062041,1.2437,4470.9,4470.8,5.515]
[1758039063936,3.48038612,4470.9,4470.8,5.515]
[1758039064109,3.83954473,4470.9,4470.8,5.515]
[1758039064639,1.60285861,4470.9,4470.8,20.015]
[1758039064943,1.2437,4470.9,4470.8,5.515]
[1758039065333,1.2437,4470.9,4470.8,20.1262]
[1758039067040,1.2437,4470.9,4470.8,20.015]
[1758039067439,1.2437,4470.9,4470.8,1.718]
[1758039067440,3.48038612,4470.9,4470.8,1.718]
[1758039067640,3.48038612,4470.9,4470.8,5.515]
[1758039067843,3.48038612,4470.9,4470.8,1.718]
[1758039067844,3.83954473,4470.9,4470.8,1.718]
[1758039068054,3.83954473,4470.9,4470.8,3.964]
[1758039070586,2.23683621,4470.6,4470.5,0.001]
[1758039070774,2.23683621,4470.6,4470.5,3.799]
[1758039071113,2.23683621,4470.6,4470.5,0.001]
[1758039071114,6.6885911,4470.6,4470.5,0.001]
[1758039071250,7.4089848,4470.6,4470.5,0.001]
[1758039071652,7.4089848,4470.6,4470.5,3.799]
[1758039072485,5.17214859,4470.6,4470.5,3.799]
[1758039072681,7.4089848,4470.6,4470.5,3.799]
[1758039074389,5.17214859,4470.6,4470.5,3.799]
[1758039074756,6.48053621,4470.6,4470.5,3.799]
[1758039075357,4.2437,4470.6,4470.5,3.799]
[1758039075991,6.48053621,4470.6,4470.5,3.799]
[1758039076555,6.61053621,4470.6,4470.5,3.799]
[1758039076756,4.3737,4470.6,4470.5,3.799]
[1758039076979,4.84698586,4470.6,4470.5,3.799]
[1758039078229,0.4283,4470.6,4470.5,3.799]
[1758039078704,0.13,4470.6,4470.5,3.799]
[1758039078912,1.0754,4471.0,4470.5,3.799]
[1758039079109,0.13,4471.0,4470.6,0.02236836]
[1758039079423,0.2983,4470.7,4470.6,0.02236836]
[1758039079915,0.463,4470.9,4470.6,0.02236836]
[1758039080124,0.2983,4470.7,4470.6,0.02236836]
[1758039080480,1.2437,4470.7,4470.6,0.02236836]
[1758039081208,0.2983,4470.7,4470.6,0.02236836]
[1758039081414,0.1112,4470.8,4470.6,0.02236836]
[1758039082091,0.1112,4470.8,4470.6,2.25919842]
[1758039082287,0.1112,4470.8,4470.6,0.02236836]
[1758039083119,0.13,4470.9,4470.8,2.23673615]
[1758039083412,0.13,4470.9,4470.8,6.05890351]
[1758039083602,0.13,4470.9,4470.8,6.03653615]
[1758039084317,0.13,4470.9,4470.8,6.25893615]
[1758039084532,0.132,4471.3,4470.8,3.9092]
[1758039084715,0.9244,4471.2,4470.8,3.9092]
[1758039084916,0.132,4471.3,4470.9,0.02236686]
[1758039085124,0.132,4471.3,4471.0,1.719]
[1758039085327,0.132,4471.3,4471.1,3.798]
[1758039085517,0.132,4471.3,4471.2,0.02236536]
[1758039086613,0.4445,4471.3,4471.2,0.02236536]
[1758039086812,1.3689,4471.3,4471.1,3.798]
[1758039087330,0.9384,4471.3,4471.1,3.798]
[1758039087535,0.132,4471.3,4471.2,0.02236536]
[1758039087702,5.22999698,4471.3,4471.2,0.02236536]
[1758039088005,8.70341748,4471.3,4471.1,3.798]
[1758039088199,0.9244,4471.2,4471.1,3.798]
[1758039088638,1.2369,4471.2,4471.1,3.798]
[1758039089334,3.47343605,4471.2,4471.1,3.798]
[1758039089540,1.2369,4471.2,4471.1,3.798]
[1758039091206,1.2369,4471.2,4471.1,18.298]
[1758039092959,3.47343605,4471.2,4471.1,18.298]
[1758039093467,1.2369,4471.2,4471.1,18.298]
[1758039093667,3.47343605,4471.2,4471.1,18.298]
[1758039093964,1.2369,4471.2,4471.1,18.298]
[1758039094123,3.47343605,4471.2,4471.1,18.298]
[1758039094326,1.2369,4471.2,4471.1,18.298]
[1758039094647,0.3125,4471.2,4471.1,18.298]
[1758039095218,5.22999698,4471.3,4471.1,18.298]
[1758039095423,0.132,4471.3,4471.2,0.02236536]
[1758039095670,0.132,4471.3,4471.2,0.02416536]
[1758039096034,0.132,4471.3,4471.2,14.52416536]
[1758039096318,0.132,4471.3,4471.2,14.5018]
[1758039096524,0.132,4471.3,4471.2,14.5]
[1758039097234,0.132,4471.3,4471.2,14.5018]
[1758039099036,0.132,4471.3,4471.2,14.5]
[1758039099375,8.70338301,4471.3,4471.2,18.297]
[1758039099599,6.46689698,4471.3,4471.2,18.297]
[1758039100101,1.46689698,4471.3,4471.2,18.297]
[1758039100261,0.8064,4471.3,4471.2,18.297]
[1758039100965,0.3125,4471.3,4471.2,18.297]
[1758039101593,5.59189698,4471.5,4471.2,18.297]
[1758039102449,7.82828546,4471.5,4471.2,3.797]
[1758039103350,2.23644085,4471.4,4471.3,0.02236486]
[1758039103715,2.23644085,4471.4,4471.3,3.81936486]
[1758039103991,0.8064,4471.4,4471.3,3.81936486]
[1758039105848,1.01570557,4471.4,4471.3,3.797]
[1758039106053,3.68264158,4471.4,4471.3,3.797]
[1758039106469,1.44620557,4471.4,4471.3,3.797]
[1758039107374,3.68264158,4471.4,4471.3,3.797]
[1758039107991,1.2369,4471.4,4471.3,3.797]
[1758039108212,3.47333601,4471.4,4471.3,3.797]
[1758039109615,3.04283601,4471.4,4471.3,3.797]
[1758039109915,3.47333601,4471.4,4471.3,3.797]
[1758039110480,1.65610926,4471.4,4471.3,3.797]
[1758039110783,1.65610926,4471.4,4471.3,18.297]
[1758039110982,1.2369,4471.4,4471.3,18.297]
[1758039111605,3.04283601,4471.4,4471.3,18.297]
[1758039111782,3.47333601,4471.4,4471.3,18.297]
[1758039111983,3.04283601,4471.4,4471.3,18.297]
[1758039112576,3.47333601,4471.4,4471.3,3.797]
[1758039112811,4.56522436,4471.4,4471.3,3.797]
[1758039113008,5.04843337,4471.4,4471.3,3.797]
[1758039113637,2.23658607,4471.1,4471.0,1.719]
[1758039113936,3.04298607,4471.1,4471.0,5.515]
[1758039114304,3.04298607,4471.1,4471.0,1.719]
[1758039114504,3.04298607,4471.1,4471.0,5.515]
[1758039116003,3.69215004,4471.1,4471.0,5.514]
[1758039116200,3.24608709,4471.1,4470.8,0.001]
[1758039116431,5.23676617,4470.8,4470.5,0.30475565]
[1758039116615,10.33483319,4470.6,4470.5,0.30475565]
[1758039116913,12.34366726,4470.6,4470.5,0.30475565]
[1758039117113,14.50778486,4470.6,4470.5,0.30475565]
[1758039118152,15.11071457,4470.6,4470.5,0.30475565]
[1758039118680,15.11071491,4470.6,4470.5,0.30475565]
[1758039119167,14.50778486,4470.6,4470.5,0.30475565]
[1758039119661,14.50713993,4470.6,4470.5,0.30475565]
[1758039120062,15.43303033,4470.2,4470.1,0.01]
[1758039120361,16.93778175,4470.2,4470.1,0.01]
[1758039120560,18.18508175,4470.2,4470.1,0.01]
[1758039121060,17.58248913,4470.2,4470.1,0.01]
[1758039122157,2.23721531,4469.9,4469.6,3.796]
[1758039122351,10.64438359,4469.7,4469.6,0.001]
[1758039122664,11.33742635,4469.7,4469.6,0.001]
[1758039122864,12.27562635,4469.7,4469.6,0.001]
[1758039123444,11.79234756,4469.7,4469.6,0.001]
[1758039124248,11.58258359,4469.7,4469.6,0.001]
[1758039124448,13.8005424,4469.7,4469.6,0.001]
[1758039124933,12.8623424,4469.7,4469.6,0.001]
[1758039125138,13.8005424,4469.7,4469.6,0.001]
[1758039127280,14.48959199,4469.7,4469.6,0.001]
[1758039127589,14.00900604,4469.7,4469.6,0.001]
[1758039128087,14.00895669,4469.7,4469.6,0.001]